[Event "55th Rubinstein Memorial-C 2019"]
[Site "Polanica-Zdroj"]
[Date "2019.08.20"]
[Round "4.25"]
[White "Ciechonski, Piotr"]
[Black "Klama, Andrzej"]
[Result "1-0"]
[ECO "C00"]
[WhiteElo "1767"]
[BlackElo "1525"]
[Annotator "NA"]
[PlyCount "89"]
[EventDate "2019.08.17"]
[EventType "swiss"]
[EventCountry "POL"]
[SourceTitle "playchess.com"]
[Source "ChessBase"]
[SourceQuality "1"]
[TimeControl "40/5400+30:1800+30"]

1. e4 e6 2. Qe2 {[%emt 0:00:47]} Nc6 3. Nf3 e5 {[%emt 0:02:25]} 4. c3 {[%emt 0:03:10]} Nf6 {[%emt 0:02:13]} 5. d4 {[%emt 0:00:35]} d6 {[%emt 0:02:37]} 6. d5 {[%emt 0:00:57]} Ne7 {[%emt 0:00:30]} 7. c4 {[%emt 0:01:17]} c5 {[%emt 0:01:38]} 8. Nc3 {[%emt 0:00:55]} Ng6 {[%emt 0:01:10]} 9. g3 {[%emt 0:01:11]} Be7 {[%emt 0:00:21]} 10. Bg2 {[%emt 0:01:55]} a6 {[%emt 0:01:14]} 11. a4 {[%emt 0:00:06]} O-O {[%emt 0:01:30]} 12. O-O {[%emt 0:00:58]} h6 {[%emt 0:00:19]} 13. Bd2 {[%emt 0:04:53]} Nh7 {[%emt 0:01:30]} 14. Ra3 {[%emt 0:06:16]} f5 {[%emt 0:02:06]} 15. exf5 {[%emt 0:00:02]} Bxf5 {[%emt 0:00:33]} 16. h3 {[%emt 0:05:13]} Nf6 {[%emt 0:02:24]} 17. g4 {[%emt 0:05:32]} Bd7 {[%emt 0:03:41]} 18. Qd3 {[%emt 0:02:13]} Qe8 {[%emt 0:03:52]} 19. Re1 {[%emt 0:01:48]} Qf7 {[%emt 0:00:47]} 20. g5 {[%emt 0:03:30]} Nh5 {[%emt 0:04:43]} 21. Ne4 {[%emt 0:07:54]} Nhf4 {[%emt 0:01:51]} 22. Qf1 {[%emt 0:01:42]} h5 {[%emt 0:05:28]} 23. a5 {[%emt 0:03:21]} Qf5 {[%emt 0:01:12]} 24. b4 {[%emt 0:01:54]} Nxg2 {[%emt 0:06:40]} 25. Qxg2 {[%emt 0:00:51]} Nf4 {[%emt 0:02:22]} 26. Bxf4 {[%emt 0:00:54]} cxb4 {[%emt 0:01:18]} 27. Nh4 {[%emt 0:04:16]} Qxf4 {[%emt 0:02:50]} 28. Ng6 {[%emt 0:00:44]} Qf7 {[%emt 0:04:41]} 29. Nxf8 {[%emt 0:00:23]} Rxf8 {[%emt 0:03:35]} 30. Rb3 {[%emt 0:01:26]} Bf5 {[%emt 0:05:20]} 31. h4 {[%emt 0:01:37]} Qg6 {[%emt 0:00:50]} 32. Rxb4 {[%emt 0:00:46]} Bd8 {[%emt 0:00:39]} 33. Ra4 {[%emt 0:01:43]} Rf7 {[%emt 0:02:38]} 34. c5 {[%emt 0:01:22]} dxc5 {[%emt 0:06:01]} 35. Nxc5 {[%emt 0:00:38]} Qd6 {[%emt 0:00:23]} 36. Ne4 {[%emt 0:00:49]} Qd7 {[%emt 0:01:08]} 37. Ra3 {[%emt 0:02:15]} g6 {[%emt 0:01:41]} 38. Rd1 {[%emt 0:02:56]} Kg7 {[%emt 0:03:01]} 39. d6 {[%emt 0:02:01]} Qc6 {[%emt 0:00:58]} 40. Ng3 {[%emt 0:02:29]} e4 {[%emt 0:04:16]} 41. Nxf5+ {[%emt 0:31:34]} Rxf5 {[%emt 0:30:18]} 42. Qg3 {[%emt 0:00:53]} Rxa5 {[%emt 0:00:40]} 43. Rxa5 {[%emt 0:00:29]} Bxa5 {[%emt 0:00:16]} 44. Qe5+ {[%emt 0:00:02]} Kg8 {[%emt 0:02:05]} 45. Qxa5 {[%emt 0:00:20]} 1-0

[Event "55th Rubinstein Memorial-C 2019"]
[Site "Polanica-Zdroj"]
[Date "2019.08.20"]
[Round "4.26"]
[White "Kaminski, Mateusz"]
[Black "Gromada, Andrzej"]
[Result "1/2-1/2"]
[ECO "C05"]
[WhiteElo "1544"]
[BlackElo "1721"]
[Annotator "NA"]
[PlyCount "129"]
[EventDate "2019.08.17"]
[EventType "swiss"]
[EventCountry "POL"]
[SourceTitle "playchess.com"]
[Source "ChessBase"]
[SourceQuality "1"]
[TimeControl "40/5400+30:1800+30"]

1. e4 {[%emt 0:00:00]} e6 {[%emt 0:00:00]} 2. d4 d5 3. Nd2 {[%emt 0:00:00]} Nf6 {[%emt 0:00:14]} 4. e5 Nfd7 {[%emt 0:00:07]} 5. f4 {[%emt 0:00:29]} c5 6. Ndf3 {[%emt 0:00:30]} Nc6 7. c3 cxd4 {[%emt 0:05:33]} 8. cxd4 {[%emt 0:01:34]} Qb6 {[%emt 0:03:27]} 9. a3 {[%emt 0:00:40]} Be7 {[%emt 0:02:52]} 10. Ne2 {[%emt 0:01:20]} O-O {[%emt 0:01:26]} 11. Nc3 {[%emt 0:04:00]} f6 {[%emt 0:04:06]} 12. b4 {[%emt 0:04:46]} fxe5 {[%emt 0:02:06]} 13. fxe5 {[%emt 0:00:20]} Rxf3 {[%emt 0:02:47]} 14. Qxf3 {[%emt 0:04:15]} Nxd4 {[%emt 0:00:48]} 15. Qf2 {[%emt 0:00:29]} Nxe5 {[%emt 0:08:01]} 16. Na4 {[%emt 0:09:24]} Bxb4+ {[%emt 0:01:05]} 17. axb4 {[%emt 0:00:25]} Qxb4+ {[%emt 0:00:07]} 18. Bd2 {[%emt 0:04:05]} Nc2+ {[%emt 0:01:02]} 19. Kd1 {[%emt 0:02:11]} Qb3 {[%emt 0:00:26]} 20. Nc5 {[%emt 0:00:22]} Qb2 {[%emt 0:02:22]} 21. Rc1 {[%emt 0:00:32]} Na3 {[%emt 0:08:30]} 22. Qg3 {[%emt 0:02:41]} Nb1 {[%emt 0:15:41]} 23. Bc3 {[%emt 0:10:07]} Nxc3+ {[%emt 0:00:12]} 24. Qxc3 {[%emt 0:00:12]} Qxc3 {[%emt 0:02:06]} 25. Rxc3 {[%emt 0:00:12]} b6 {[%emt 0:00:15]} 26. Na6 {[%emt 0:00:45]} Ng4 {[%emt 0:01:29]} 27. Kc2 {[%emt 0:01:18]} d4 {[%emt 0:00:32]} 28. Ra3 {[%emt 0:01:01]} Bb7 {[%emt 0:00:54]} 29. Kd2 {[%emt 0:01:32]} Rf8 {[%emt 0:02:04]} 30. Nc7 {[%emt 0:11:55]} Ne3 {[%emt 0:02:57]} 31. Ke2 {[%emt 0:01:27]} a5 {[%emt 0:00:35]} 32. Rxe3 {[%emt 0:06:42]} dxe3 {[%emt 0:01:08]} 33. Kxe3 {[%emt 0:00:50]} Rf6 {[%emt 0:02:54]} 34. Rg1 {[%emt 0:02:13]} Kf8 {[%emt 0:03:29]} 35. Bc4 {[%emt 0:02:20]} Ke7 {[%emt 0:01:28]} 36. Nxe6 {[%emt 0:01:46]} b5 {[%emt 0:01:32]} 37. Ba2 {[%emt 0:00:11]} Rxe6+ {[%emt 0:01:33]} 38. Bxe6 {[%emt 0:00:06]} Kxe6 {[%emt 0:00:02]} 39. Kd4 {[%emt 0:00:25]} Kd6 {[%emt 0:01:03]} 40. g3 {[%emt 0:02:02]} Bd5 {[%emt 0:01:11]} 41. Re1 {[%emt 0:33:20]} a4 {[%emt 0:30:42]} 42. Re8 {[%emt 0:03:50]} Bc4 {[%emt 0:01:24]} 43. Ra8 {[%emt 0:02:04]} Ke6 {[%emt 0:00:45]} 44. Rf8 {[%emt 0:06:02]} a3 {[%emt 0:00:37]} 45. Kc3 {[%emt 0:00:19]} Ke5 {[%emt 0:01:02]} 46. h4 {[%emt 0:01:30]} Ke4 {[%emt 0:01:42]} 47. g4 {[%emt 0:02:24]} h6 {[%emt 0:00:59]} 48. g5 {[%emt 0:03:14]} hxg5 {[%emt 0:00:23]} 49. hxg5 {[%emt 0:00:05]} a2 {[%emt 0:00:16]} 50. Kb2 {[%emt 0:00:08]} Ke5 {[%emt 0:00:32]} 51. Rf2 {[%emt 0:02:08]} b4 {[%emt 0:00:29]} 52. Rf3 {[%emt 0:03:02]} b3 {[%emt 0:00:30]} 53. Rf8 {[%emt 0:02:55]} g6 {[%emt 0:00:20]} 54. Rf6 {[%emt 0:01:11]} Bd3 {[%emt 0:00:08]} 55. Rf8 {[%emt 0:00:17]} Bf5 {[%emt 0:00:15]} 56. Ra8 {[%emt 0:00:31]} Kf4 {[%emt 0:00:35]} 57. Kxb3 {[%emt 0:00:19]} Be6+ {[%emt 0:00:28]} 58. Kc2 {[%emt 0:00:22]} Kxg5 {[%emt 0:00:04]} 59. Kd2 {[%emt 0:00:10]} Kf4 {[%emt 0:00:24]} 60. Ra4+ {[%emt 0:01:11]} Kf3 {[%emt 0:00:39]} 61. Kc1 {[%emt 0:01:37]} g5 {[%emt 0:00:42]} 62. Kb2 {[%emt 0:00:06]} Bd5 {[%emt 0:00:41]} 63. Rb4 {[%emt 0:00:53]} Be4 {[%emt 0:00:44]} 64. Rb5 {[%emt 0:00:41]} g4 {[%emt 0:00:29]} 65. Rg5 {[%emt 0:00:10]} 1/2-1/2

[Event "55th Rubinstein Memorial-C 2019"]
[Site "Polanica-Zdroj"]
[Date "2019.08.20"]
[Round "4.27"]
[White "Szydelko, Kazimierz"]
[Black "Szlosarczyk, Hubert"]
[Result "1-0"]
[ECO "D31"]
[WhiteElo "1717"]
[BlackElo "1519"]
[Annotator "NA"]
[PlyCount "89"]
[EventDate "2019.08.17"]
[EventType "swiss"]
[EventCountry "POL"]
[SourceTitle "playchess.com"]
[Source "ChessBase"]
[SourceQuality "1"]
[TimeControl "40/5400+30:1800+30"]

1. d4 {[%emt 0:00:00]} d5 {[%emt 0:00:14]} 2. c4 e6 {[%emt 0:01:02]} 3. Nf3 c6 4. Nc3 {[%emt 0:02:37]} dxc4 {[%emt 0:02:07]} 5. e3 {[%emt 0:02:09]} b5 {[%emt 0:01:29]} 6. a4 {[%emt 0:00:21]} Bb4 {[%emt 0:01:51]} 7. Bd2 {[%emt 0:02:24]} Bxc3 {[%emt 0:01:34]} 8. Bxc3 {[%emt 0:01:50]} Bb7 {[%emt 0:01:23]} 9. b3 {[%emt 0:03:49]} Qd5 {[%emt 0:03:23]} 10. bxc4 {[%emt 0:04:32]} bxc4 {[%emt 0:00:11]} 11. Qc2 {[%emt 0:01:20]} f5 {[%emt 0:03:17]} 12. Bb4 {[%emt 0:02:00]} Ba6 {[%emt 0:02:53]} 13. Rc1 {[%emt 0:01:06]} Nd7 {[%emt 0:09:01]} 14. Bxc4 {[%emt 0:00:31]} Bxc4 {[%emt 0:00:58]} 15. Qxc4 {[%emt 0:00:10]} Rb8 {[%emt 0:02:20]} 16. O-O {[%emt 0:10:25]} Qxc4 {[%emt 0:07:13]} 17. Rxc4 {[%emt 0:00:07]} Kf7 {[%emt 0:02:05]} 18. Bd6 {[%emt 0:02:20]} Rb6 {[%emt 0:00:59]} 19. Rfc1 {[%emt 0:01:34]} Ne7 {[%emt 0:00:38]} 20. Bxe7 Kxe7 {[%emt 0:00:02]} 21. Rxc6 {[%emt 0:11:47]} Rxc6 {[%emt 0:00:38]} 22. Rxc6 {[%emt 0:00:01]} Rb8 {[%emt 0:00:28]} 23. g3 {[%emt 0:01:49]} Rb7 {[%emt 0:00:12]} 24. Kg2 {[%emt 0:02:08]} h6 {[%emt 0:00:23]} 25. h4 {[%emt 0:01:47]} Nb6 {[%emt 0:00:51]} 26. a5 {[%emt 0:01:49]} Nd5 {[%emt 0:00:12]} 27. Ne5 {[%emt 0:01:23]} Nb4 {[%emt 0:02:24]} 28. a6 {[%emt 0:04:58]} Rb5 {[%emt 0:01:41]} 29. Rc7+ {[%emt 0:00:16]} Kd8 {[%emt 0:00:28]} 30. Rxa7 {[%emt 0:01:56]} Kc8 {[%emt 0:00:56]} 31. Rxg7 {[%emt 0:00:28]} Nxa6 {[%emt 0:00:05]} 32. Rg6 {[%emt 0:00:34]} Nc7 {[%emt 0:00:09]} 33. Rxh6 {[%emt 0:00:14]} Rb2 {[%emt 0:00:04]} 34. Rh8+ {[%emt 0:01:15]} Kb7 {[%emt 0:00:07]} 35. h5 {[%emt 0:00:32]} Nd5 {[%emt 0:00:05]} 36. Kf3 {[%emt 0:02:01]} Nf6 {[%emt 0:00:09]} 37. Nd3 {[%emt 0:04:34]} Rd2 {[%emt 0:00:22]} 38. Nc5+ {[%emt 0:00:24]} Kc6 {[%emt 0:00:03]} 39. Nxe6 {[%emt 0:03:22]} Ne4 {[%emt 0:00:24]} 40. Kf4 {[%emt 0:01:29]} Rxf2+ {[%emt 0:00:14]} 41. Ke5 {[%emt 0:30:19]} Nxg3 {[%emt 0:30:10]} 42. d5+ {[%emt 0:00:21]} Kd7 {[%emt 0:00:08]} 43. Rh7+ {[%emt 0:00:54]} Ke8 {[%emt 0:00:01]} 44. d6 {[%emt 0:00:21]} Rd2 {[%emt 0:00:25]} 45. Re7# {[%emt 0:00:14]} 1-0

[Event "55th Rubinstein Memorial-C 2019"]
[Site "Polanica-Zdroj"]
[Date "2019.08.20"]
[Round "4.28"]
[White "Wojtas, Julia"]
[Black "Burdzicki, Jan"]
[Result "0-1"]
[ECO "C12"]
[WhiteElo "1522"]
[BlackElo "1716"]
[Annotator "NA"]
[PlyCount "76"]
[EventDate "2019.08.17"]
[EventType "swiss"]
[EventCountry "POL"]
[SourceTitle "playchess.com"]
[Source "ChessBase"]
[SourceQuality "1"]
[TimeControl "40/5400+30:1800+30"]

1. e4 {[%emt 0:00:00]} e6 {[%emt 0:07:23]} 2. d4 {[%emt 0:00:00]} d5 {[%emt 0:00:01]} 3. Nc3 {[%emt 0:00:00]} Nf6 {[%emt 0:00:06]} 4. Bg5 {[%emt 0:00:19]} Bb4 {[%emt 0:00:49]} 5. e5 {[%emt 0:01:20]} h6 {[%emt 0:00:05]} 6. Bd2 {[%emt 0:00:18]} Bxc3 {[%emt 0:00:06]} 7. bxc3 {[%emt 0:00:14]} Ne4 {[%emt 0:00:02]} 8. Bd3 {[%emt 0:01:37]} Nxd2 {[%emt 0:02:15]} 9. Qxd2 {[%emt 0:00:15]} c5 {[%emt 0:00:37]} 10. Nh3 {[%emt 0:06:03]} Qa5 {[%emt 0:08:40]} 11. Nf4 {[%emt 0:05:44]} Nc6 {[%emt 0:02:33]} 12. Nh5 {[%emt 0:05:05]} Kf8 {[%emt 0:05:02]} 13. O-O {[%emt 0:07:50]} cxd4 {[%emt 0:14:27]} 14. Qf4 {[%emt 0:03:29]} dxc3 {[%emt 0:04:24]} 15. Qg3 {[%emt 0:05:56]} g6 {[%emt 0:10:24]} 16. Nf6 {[%emt 0:06:05]} Qc7 {[%emt 0:06:18]} 17. f4 {[%emt 0:02:38]} b5 {[%emt 0:13:31]} 18. h4 {[%emt 0:06:07]} h5 {[%emt 0:01:08]} 19. Qg5 {[%emt 0:01:40]} Nb8 {[%emt 0:08:08]} 20. Rf3 {[%emt 0:13:49]} Bd7 {[%emt 0:04:19]} 21. Kh2 {[%emt 0:10:45]} Bc6 {[%emt 0:01:24]} 22. Rb1 {[%emt 0:12:06]} a6 {[%emt 0:03:14]} 23. Rg3 {[%emt 0:01:21]} Qe7 {[%emt 0:02:25]} 24. f5 {[%emt 0:03:02]} exf5 {[%emt 0:01:02]} 25. Bxf5 {[%emt 0:00:17]} Qxe5 {[%emt 0:00:42]} 26. Rf1 {[%emt 0:01:57]} Kg7 {[%emt 0:01:20]} 27. Bd3 {[%emt 0:04:46]} Qxg5 {[%emt 0:00:56]} 28. Rxg5 {[%emt 0:00:12]} d4 {[%emt 0:01:23]} 29. Be4 {[%emt 0:01:00]} Bxe4 {[%emt 0:00:38]} 30. Nxe4 {[%emt 0:00:05]} Rd8 {[%emt 0:00:42]} 31. Nc5 {[%emt 0:00:49]} Nc6 {[%emt 0:00:33]} 32. a3 {[%emt 0:00:35]} b4 {[%emt 0:00:25]} 33. Nd3 {[%emt 0:00:33]} a5 {[%emt 0:00:25]} 34. Rb1 {[%emt 0:00:25]} bxa3 {[%emt 0:00:43]} 35. Ra1 {[%emt 0:00:15]} Nb4 {[%emt 0:00:12]} 36. Nxb4 {[%emt 0:00:14]} axb4 {[%emt 0:00:02]} 37. Rb5 {[%emt 0:00:05]} Ra4 {[%emt 0:00:10]} 38. Kg3 {[%emt 0:00:24]} d3 {[%emt 0:00:08]} 0-1

[Event "55th Rubinstein Memorial-C 2019"]
[Site "Polanica-Zdroj"]
[Date "2019.08.20"]
[Round "4.29"]
[White "Wolska, Marta"]
[Black "Milczarek, Robert"]
[Result "1-0"]
[ECO "E71"]
[WhiteElo "1516"]
[BlackElo "1698"]
[Annotator "NA"]
[PlyCount "51"]
[EventDate "2019.08.17"]
[EventType "swiss"]
[EventCountry "POL"]
[SourceTitle "playchess.com"]
[Source "ChessBase"]
[SourceQuality "1"]
[TimeControl "40/5400+30:1800+30"]

1. d4 {[%emt 0:00:00]} Nf6 {[%emt 0:00:00]} 2. c4 {[%emt 0:00:03]} g6 {[%emt 0:00:00]} 3. Nc3 {[%emt 0:00:47]} Bg7 {[%emt 0:00:00]} 4. e4 {[%emt 0:00:10]} d6 {[%emt 0:00:00]} 5. h3 {[%emt 0:01:36]} O-O {[%emt 0:03:12]} 6. Nf3 {[%emt 0:00:05]} Na6 {[%emt 0:01:16]} 7. Be3 {[%emt 0:04:01]} e5 {[%emt 0:01:21]} 8. d5 {[%emt 0:00:45]} Nc5 {[%emt 0:01:52]} 9. Nd2 {[%emt 0:01:17]} a5 {[%emt 0:02:25]} 10. g4 {[%emt 0:00:48]} c6 {[%emt 0:06:34]} 11. Be2 {[%emt 0:06:10]} cxd5 {[%emt 0:04:10]} 12. cxd5 {[%emt 0:02:45]} b5 {[%emt 0:06:32]} 13. g5 {[%emt 0:10:53]} Nh5 {[%emt 0:02:16]} 14. Bxc5 {[%emt 0:12:10]} dxc5 {[%emt 0:00:14]} 15. Bxh5 {[%emt 0:00:06]} gxh5 {[%emt 0:00:29]} 16. Qxh5 {[%emt 0:01:12]} b4 {[%emt 0:03:03]} 17. Ne2 {[%emt 0:01:46]} f5 {[%emt 0:01:03]} 18. Rg1 {[%emt 0:05:48]} f4 {[%emt 0:07:02]} 19. Nf3 {[%emt 0:04:05]} Bd7 {[%emt 0:02:30]} 20. g6 {[%emt 0:06:16]} h6 {[%emt 0:02:01]} 21. Nxe5 {[%emt 0:01:36]} Be8 {[%emt 0:05:19]} 22. h4 {[%emt 0:05:42]} Bxe5 {[%emt 0:09:02]} 23. Qxe5 {[%emt 0:00:11]} Qxh4 {[%emt 0:01:01]} 24. Qe6+ {[%emt 0:00:33]} Kg7 {[%emt 0:00:31]} 25. Qe5+ {[%emt 0:03:06]} Qf6 {[%emt 0:04:16]} 26. Qc7+ {[%emt 0:00:13]} 1-0

[Event "55th Rubinstein Memorial-C 2019"]
[Site "Polanica-Zdroj"]
[Date "2019.08.20"]
[Round "4.30"]
[White "Juszczak, Milosz"]
[Black "Grzelak, Piotr"]
[Result "0-1"]
[ECO "D35"]
[WhiteElo "1516"]
[BlackElo "1673"]
[Annotator "NA"]
[PlyCount "78"]
[EventDate "2019.08.17"]
[EventType "swiss"]
[EventCountry "POL"]
[SourceTitle "playchess.com"]
[Source "ChessBase"]
[SourceQuality "1"]
[TimeControl "40/5400+30:1800+30"]

1. d4 e6 2. c4 Nf6 3. Nc3 d5 4. Bf4 Bd6 5. Bxd6 Qxd6 6. e3 O-O 7. Nf3 b6 8. Nb5 Qe7 9. Qb3 Bb7 10. Rc1 Nc6 11. c5 Rfc8 12. Bd3 Ne4 13. Bxe4 dxe4 14. Nd2 Kh8 15. O-O f5 16. Rc3 Na5 17. Qb4 Bd5 18. Rfc1 a6 19. Na3 Nc6 20. Qa4 b5 21. Qd1 b4 22. R3c2 bxa3 23. bxa3 Rcb8 24. Rb1 Rxb1 25. Qxb1 Rb8 26. Rb2 Qd8 27. Nf1 Rxb2 28. Qxb2 Qb8 29. Qc2 Kg8 30. g4 fxg4 31. Ng3 Qf8 32. Qe2 e5 33. Qxg4 exd4 34. Qd7 Qd8 35. Qxd8+ Nxd8 36. exd4 Nc6 37. Ne2 Bc4 38. Nc3 Nxd4 39. Nxe4 Ne2+ 0-1

[Event "55th Rubinstein Memorial-C 2019"]
[Site "Polanica-Zdroj"]
[Date "2019.08.20"]
[Round "4.31"]
[White "Jakubiak, Karol"]
[Black "Grzadka, Artur"]
[Result "1-0"]
[ECO "B50"]
[WhiteElo "1665"]
[BlackElo "1512"]
[Annotator "NA"]
[PlyCount "55"]
[EventDate "2019.08.17"]
[EventType "swiss"]
[EventCountry "POL"]
[SourceTitle "playchess.com"]
[Source "ChessBase"]
[SourceQuality "1"]
[TimeControl "40/5400+30:1800+30"]

1. e4 c5 2. Nf3 {[%emt 0:00:28]} d6 {[%emt 0:00:13]} 3. Nc3 {[%emt 0:00:23]} a6 {[%emt 0:00:38]} 4. d4 {[%emt 0:00:07]} cxd4 {[%emt 0:00:07]} 5. Nxd4 {[%emt 0:00:04]} e5 {[%emt 0:00:06]} 6. Be2 {[%emt 0:01:02]} Nf6 {[%emt 0:00:17]} 7. Nb3 {[%emt 0:00:28]} Be7 {[%emt 0:00:13]} 8. Be3 {[%emt 0:00:12]} Be6 {[%emt 0:00:18]} 9. O-O {[%emt 0:00:08]} O-O {[%emt 0:00:07]} 10. f4 Qc7 {[%emt 0:02:08]} 11. f5 {[%emt 0:06:08]} Bc4 {[%emt 0:01:48]} 12. Bxc4 {[%emt 0:17:50]} Qxc4 {[%emt 0:02:43]} 13. Qf3 {[%emt 0:00:05]} Nbd7 {[%emt 0:04:30]} 14. g4 {[%emt 0:04:05]} Rac8 {[%emt 0:13:24]} 15. g5 {[%emt 0:02:34]} Ne8 {[%emt 0:04:21]} 16. Na5 {[%emt 0:01:03]} Qc7 {[%emt 0:12:31]} 17. Nd5 {[%emt 0:00:07]} Qxa5 {[%emt 0:00:14]} 18. Nxe7+ {[%emt 0:00:07]} Kh8 {[%emt 0:00:10]} 19. Nxc8 {[%emt 0:00:13]} Qd8 {[%emt 0:02:02]} 20. Na7 {[%emt 0:06:43]} Qc7 {[%emt 0:02:40]} 21. Qe2 {[%emt 0:14:16]} Nb8 {[%emt 0:11:39]} 22. Rf3 {[%emt 0:02:31]} b6 {[%emt 0:02:34]} 23. Rh3 {[%emt 0:00:58]} Qxa7 24. Qh5 h6 {[%emt 0:10:05]} 25. f6 {[%emt 0:02:03]} Qb7 {[%emt 0:01:40]} 26. fxg7+ {[%emt 0:00:09]} Nxg7 {[%emt 0:00:13]} 27. Qxh6+ {[%emt 0:00:08]} Kg8 {[%emt 0:00:06]} 28. Qh7# 1-0

[Event "55th Rubinstein Memorial-C 2019"]
[Site "Polanica-Zdroj"]
[Date "2019.08.20"]
[Round "4.33"]
[White "Szeliga, Sebastian"]
[Black "Stoop, Jan"]
[Result "1/2-1/2"]
[ECO "C44"]
[WhiteElo "1506"]
[BlackElo "1654"]
[Annotator "NA"]
[PlyCount "68"]
[EventDate "2019.08.17"]
[EventType "swiss"]
[EventCountry "POL"]
[SourceTitle "playchess.com"]
[Source "ChessBase"]
[SourceQuality "1"]
[TimeControl "40/5400+30:1800+30"]

1. e4 e5 2. Nf3 Nc6 3. d4 exd4 4. Nxd4 Nf6 5. Nxc6 bxc6 6. Bd3 d5 7. exd5 cxd5 8. O-O Be7 9. b3 O-O 10. Bb2 c5 11. Nd2 Bg4 12. Be2 Bf5 13. Re1 Rb8 14. Nf1 a5 15. Ne3 Be6 16. Rb1 Qd7 17. Qd2 Ne4 18. Qd3 f5 19. Bf3 Rfd8 20. Red1 Qc6 21. Qe2 a4 22. Ba1 axb3 23. axb3 Ra8 24. Rd3 c4 25. bxc4 dxc4 26. Rxd8+ Rxd8 27. Re1 c3 28. Nd1 Rd2 29. Qe3 Bc5 30. Bxe4 Qxe4 31. Qxe4 fxe4 32. Bxc3 Rxc2 33. Rxe4 Bb3 34. Re1 Rc1 1/2-1/2

[Event "55th Rubinstein Memorial-C 2019"]
[Site "Polanica-Zdroj"]
[Date "2019.08.21"]
[Round "5.1"]
[White "Sroka, Janusz"]
[Black "Obrochta, Lena"]
[Result "1/2-1/2"]
[ECO "B23"]
[WhiteElo "1875"]
[BlackElo "1870"]
[Annotator "NA"]
[PlyCount "61"]
[EventDate "2019.08.17"]
[EventType "swiss"]
[EventCountry "POL"]
[SourceTitle "playchess.com"]
[Source "ChessBase"]
[SourceQuality "1"]
[TimeControl "40/5400+30:1800+30"]

1. e4 {[%emt 0:00:00]} c5 {[%emt 0:00:00]} 2. Nc3 {[%emt 0:00:37]} a6 {[%emt 0:00:34]} 3. a4 {[%emt 0:00:07]} e6 {[%emt 0:03:25]} 4. g3 {[%emt 0:03:30]} Nc6 {[%emt 0:01:26]} 5. Bg2 {[%emt 0:00:07]} Nf6 {[%emt 0:01:06]} 6. d3 {[%emt 0:00:39]} Be7 {[%emt 0:04:14]} 7. Nge2 {[%emt 0:01:53]} O-O {[%emt 0:01:01]} 8. O-O {[%emt 0:00:05]} Rb8 {[%emt 0:02:41]} 9. f4 {[%emt 0:08:34]} d6 {[%emt 0:01:26]} 10. h3 {[%emt 0:02:57]} Bd7 {[%emt 0:08:10]} 11. g4 {[%emt 0:00:35] B24: Closed Sicilian: 3 g3 sidelines} b5 {[%emt 0:05:03]} 12. axb5 {[%emt 0:00:05]} axb5 {[%emt 0:00:07]} 13. Ng3 {[%emt 0:00:26]} g6 $146 {[%emt 0:12:43]} ({Predecessor:} 13... b4 14. Nce2 e5 15. Nf5 exf4 16. Nxf4 h6 17. Qe1 Bxf5 18. gxf5 Nd7 {1-0 (35) Leszner,L (2055)-Krzyzanowska Zadlo,L (1842) Szklarska Poreba 2017}) 14. f5 {[%emt 0:03:47]} Ne8 {[%emt 0:05:26]} 15. Bh6 {[%emt 0:01:55]} Ng7 {[%emt 0:00:12]} 16. fxe6 {[%emt 0:09:37]} (16. Qc1 $14) 16... fxe6 {[%emt 0:01:16]} 17. Rxf8+ {[%emt 0:00:22]} Qxf8 {[%emt 0:02:56]} 18. Qd2 {[%emt 0:00:30]} Bh4 {[%emt 0:01:07]} 19. Nce2 {[%emt 0:01:29]} e5 {[%emt 0:03:18]} 20. Rf1 {[%emt 0:02:56]} Qe7 {[%emt 0:02:07]} 21. Kh2 {[%emt 0:01:05]} b4 {[%emt 0:04:09]} 22. c3 {[%emt 0:02:58]} Ne6 {[%emt 0:00:22]} 23. Ng1 {[%emt 0:10:52]} Ra8 {[%emt 0:05:53]} 24. Nf3 {[%emt 0:02:36]} Bf6 {[%emt 0:00:36]} 25. Qe3 {[%emt 0:17:54]} Ra2 {[%emt 0:02:31]} 26. Rb1 {[%emt 0:06:31]} Qd8 {[%emt 0:05:59]} 27. Ne2 {[%emt 0:03:14]} Ra8 {[%emt 0:04:51]} 28. g5 {[%emt 0:05:51]} Bg7 {[%emt 0:02:19]} 29. Bxg7 {[%emt 0:00:09]} Kxg7 {[%emt 0:00:13]} 30. d4 {[%emt 0:00:13]} cxd4 {[%emt 0:03:17]} 31. cxd4 $11 {[%emt 0:00:08]} 1/2-1/2